[Event "13th Arad Open 2020"]
[Site "Arad"]
[Date "2020.09.28"]
[Round "5.2"]
[White "Talu, Mircea"]
[Black "Kozak, Adam"]
[Result "1/2-1/2"]
[ECO "A33"]
[WhiteElo "2351"]
[BlackElo "2503"]
[Annotator "ChessBase"]
[PlyCount "54"]
[EventDate "2020.09.25"]
[EventType "swiss"]
[EventCountry "ROU"]
[SourceTitle "playchess.com"]
[Source "ChessBase"]
[SourceQuality "1"]
[TimeControl "5400+30"]

1. d4 {[%emt 0:01:51]} Nf6 {[%emt 0:00:29]} 2. c4 {[%emt 0:00:10]} e6 {[%emt 0:00:15]} 3. Nf3 {[%emt 0:00:15]} c5 {[%emt 0:00:12]} 4. Nc3 {[%emt 0:11:51]} cxd4 {[%emt 0:00:25]} 5. Nxd4 {[%emt 0:00:06]} Nc6 {[%emt 0:00:10]} 6. e4 {[%emt 0:05:45]} Bb4 {[%emt 0:00:17]} 7. Nxc6 {[%emt 0:00:28]} bxc6 {[%emt 0:00:07]} 8. Bd3 {[%emt 0:00:28]} e5 {[%emt 0:00:25]} 9. Bd2 {[%emt 0:01:25]} O-O {[%emt 0:05:00]} 10. O-O {[%emt 0:00:38]} a5 {[%emt 0:01:30]} 11. Qc2 {[%emt 0:04:26]} d6 {[%emt 0:08:53]} 12. h3 {[%emt 0:07:04]} Be6 {[%emt 0:03:31]} 13. Be3 {[%emt 0:07:36]} Nd7 {[%emt 0:11:03]} 14. Na4 {[%emt 0:00:48]} Rb8 {[%emt 0:07:13]} 15. Rfd1 {[%emt 0:02:55]} Qe7 {[%emt 0:08:22]} 16. Rab1 {[%emt 0:03:33]} Bc5 {[%emt 0:03:28]} 17. Nxc5 {[%emt 0:00:39]} Nxc5 {[%emt 0:00:17]} 18. Be2 {[%emt 0:00:07]} f5 {[%emt 0:09:58]} 19. Bxc5 {[%emt 0:00:58]} dxc5 {[%emt 0:00:07]} 20. Qc3 {[%emt 0:00:38]} Qc7 {[%emt 0:09:16]} 21. exf5 Bxf5 {[%emt 0:00:09]} 22. Bd3 {[%emt 0:11:21]} e4 {[%emt 0:00:51]} 23. Bc2 {[%emt 0:00:05]} e3 {[%emt 0:00:22]} 24. fxe3 {[%emt 0:13:55]} Bxh3 {[%emt 0:00:22]} 25. Rf1 {[%emt 0:00:20]} Qg3 {[%emt 0:06:23]} 26. Be4 {[%emt 0:00:46]} Rfe8 {[%emt 0:01:47]} 27. Bxc6 {[%emt 0:06:17]} Rxe3 {[%emt 0:02:59]} 1/2-1/2

[Event "13th Arad Open 2020"]
[Site "Arad"]
[Date "2020.09.28"]
[Round "5.3"]
[White "Solodovnichenko, Yuri"]
[Black "Lehaci, Miruna-Daria"]
[Result "1-0"]
[ECO "B94"]
[WhiteElo "2553"]
[BlackElo "2223"]
[Annotator "ChessBase"]
[PlyCount "159"]
[EventDate "2020.09.25"]
[EventType "swiss"]
[EventCountry "ROU"]
[SourceTitle "playchess.com"]
[Source "ChessBase"]
[SourceQuality "1"]
[TimeControl "5400+30"]

1. e4 {[%emt 0:00:00]} c5 {[%emt 0:00:00]} 2. Nf3 {[%emt 0:00:16]} d6 {[%emt 0:00:00]} 3. d4 {[%emt 0:00:17]} cxd4 {[%emt 0:00:01]} 4. Nxd4 {[%emt 0:00:05]} Nf6 {[%emt 0:00:04]} 5. Nc3 {[%emt 0:00:05]} a6 {[%emt 0:00:02]} 6. Bg5 {[%emt 0:00:23]} Nbd7 {[%emt 0:00:18]} 7. Bc4 {[%emt 0:00:22]} h6 {[%emt 0:00:18]} 8. Bxf6 {[%emt 0:01:41]} Nxf6 {[%emt 0:00:07]} 9. Qe2 {[%emt 0:00:25]} e6 {[%emt 0:01:22]} 10. O-O-O {[%emt 0:00:11]} Qc7 {[%emt 0:03:06]} 11. f4 {[%emt 0:02:51]} b5 {[%emt 0:04:53]} 12. Bb3 {[%emt 0:00:16]} b4 {[%emt 0:03:00]} 13. Nb1 {[%emt 0:14:49]} Be7 {[%emt 0:22:02]} 14. g4 {[%emt 0:06:03]} d5 {[%emt 0:04:14]} 15. Ba4+ {[%emt 0:07:52]} Bd7 {[%emt 0:10:24]} 16. Bxd7+ {[%emt 0:00:09]} Nxd7 {[%emt 0:00:08]} 17. exd5 {[%emt 0:03:01]} Qxf4+ {[%emt 0:00:46]} 18. Rd2 {[%emt 0:00:06]} O-O {[%emt 0:07:44]} 19. dxe6 {[%emt 0:01:04]} Nf6 {[%emt 0:02:07]} 20. Nf5 {[%emt 0:03:42]} Bc5 {[%emt 0:01:01]} 21. e7 {[%emt 0:08:29]} Rfe8 {[%emt 0:00:47]} 22. Rf1 {[%emt 0:07:59]} Qe4 {[%emt 0:10:03]} 23. Qxe4 {[%emt 0:00:30]} Nxe4 {[%emt 0:00:30]} 24. Rd7 {[%emt 0:00:30]} g6 {[%emt 0:00:30]} 25. Nxh6+ {[%emt 0:00:30]} Kg7 {[%emt 0:00:30]} 26. Nxf7 {[%emt 0:00:30]} Nf6 {[%emt 0:00:30]} 27. Rd3 {[%emt 0:00:30]} Rxe7 {[%emt 0:00:30]} 28. Nd6 {[%emt 0:00:30]} Nxg4 {[%emt 0:00:30]} 29. h3 {[%emt 0:00:30]} Be3+ {[%emt 0:11:46]} 30. Nd2 {[%emt 0:08:46]} Nf2 {[%emt 0:00:07]} 31. Rd5 {[%emt 0:01:51]} Nxh3 {[%emt 0:02:13]} 32. N6c4 {[%emt 0:00:56]} Bh6 {[%emt 0:00:49]} 33. c3 {[%emt 0:03:36]} Nf4 {[%emt 0:00:33]} 34. Rd6 {[%emt 0:00:15]} bxc3 {[%emt 0:01:07]} 35. bxc3 {[%emt 0:00:02]} a5 {[%emt 0:00:58]} 36. Kc2 {[%emt 0:02:25]} a4 {[%emt 0:00:39]} 37. Rb1 {[%emt 0:02:26]} Raa7 {[%emt 0:01:01]} 38. Rbb6 {[%emt 0:00:36]} Kh7 {[%emt 0:00:43]} 39. Nf3 {[%emt 0:02:40]} Re2+ {[%emt 0:01:50]} 40. Ncd2 {[%emt 0:00:50]} Rae7 {[%emt 0:02:59]} 41. c4 {[%emt 0:00:53]} Ng2 {[%emt 0:01:02]} 42. Rxg6 {[%emt 0:01:53]} Ne3+ {[%emt 0:02:17]} 43. Kc1 {[%emt 0:06:46]} Bf4 {[%emt 0:00:36]} 44. Rge6 {[%emt 0:07:39]} Nxc4 {[%emt 0:01:02]} 45. Rxe7+ {[%emt 0:00:14]} Rxe7 {[%emt 0:00:04]} 46. Rb4 {[%emt 0:00:08]} Rc7 {[%emt 0:03:03]} 47. Kd1 {[%emt 0:00:20]} Ne3+ {[%emt 0:02:04]} 48. Ke2 {[%emt 0:00:06]} Nd5 {[%emt 0:00:09]} 49. Rd4 {[%emt 0:00:49]} Nc3+ {[%emt 0:00:24]} 50. Kd3 {[%emt 0:00:40]} Bxd2 {[%emt 0:01:11]} 51. Kxd2 {[%emt 0:00:22]} a3 {[%emt 0:00:22]} 52. Rd3 {[%emt 0:05:28]} Nb1+ {[%emt 0:01:01]} 53. Kd1 {[%emt 0:01:36]} Nc3+ {[%emt 0:00:05]} 54. Kd2 {[%emt 0:00:03]} Nb1+ {[%emt 0:00:03]} 55. Ke3 {[%emt 0:01:18]} Rc2 {[%emt 0:00:23]} 56. Rd1 {[%emt 0:00:33]} Rb2 {[%emt 0:02:43]} 57. Kd3 {[%emt 0:00:11]} Kg7 {[%emt 0:00:42]} 58. Rf1 {[%emt 0:00:20]} Rxa2 {[%emt 0:00:40]} 59. Rxb1 {[%emt 0:00:06]} Rf2 {[%emt 0:00:43]} 60. Nd2 {[%emt 0:00:08]} Kf7 {[%emt 0:00:19]} 61. Rb7+ {[%emt 0:00:25]} Ke6 {[%emt 0:00:12]} 62. Ra7 {[%emt 0:00:09]} Rh2 {[%emt 0:00:13]} 63. Ke3 {[%emt 0:00:13]} Kd5 {[%emt 0:00:34]} 64. Ra5+ {[%emt 0:00:12]} Ke6 {[%emt 0:00:09]} 65. Rxa3 {[%emt 0:00:17]} Rh3+ {[%emt 0:00:04]} 66. Nf3 {[%emt 0:00:04]} Kd5 {[%emt 0:00:14]} 67. Rd3+ {[%emt 0:00:36]} Kc5 {[%emt 0:00:18]} 68. Ke4 {[%emt 0:00:06]} Rh1 {[%emt 0:00:20]} 69. Rd5+ {[%emt 0:00:55]} Kc4 {[%emt 0:00:13]} 70. Nd2+ {[%emt 0:00:25]} Kc3 {[%emt 0:00:09]} 71. Rd3+ {[%emt 0:00:24]} Kc2 {[%emt 0:00:04]} 72. Nf3 {[%emt 0:00:07]} Rh8 {[%emt 0:00:22]} 73. Nd4+ {[%emt 0:00:36]} Kb2 {[%emt 0:00:08]} 74. Rb3+ {[%emt 0:00:28]} Ka2 {[%emt 0:00:05]} 75. Rb6 {[%emt 0:00:06]} Rh4+ {[%emt 0:01:12]} 76. Kd3 {[%emt 0:00:23]} Rh3+ {[%emt 0:00:42]} 77. Kc4 {[%emt 0:00:09]} Rg3 {[%emt 0:00:31]} 78. Ne2 {[%emt 0:00:18]} Rh3 {[%emt 0:01:26]} 79. Nc3+ {[%emt 0:00:04]} Ka3 {[%emt 0:00:04]} 80. Rb3# {[%emt 0:00:03]} 1-0

[Event "13th Arad Open 2020"]
[Site "Arad"]
[Date "2020.09.28"]
[Round "5.4"]
[White "Andronescu, Madalin"]
[Black "Filip, Lucian-Ioan"]
[Result "0-1"]
[ECO "B48"]
[WhiteElo "2165"]
[BlackElo "2432"]
[Annotator "ChessBase"]
[PlyCount "82"]
[EventDate "2020.09.25"]
[EventType "swiss"]
[EventCountry "ROU"]
[SourceTitle "playchess.com"]
[Source "ChessBase"]
[SourceQuality "1"]
[TimeControl "5400+30"]

1. e4 {[%emt 0:00:00]} c5 {[%emt 0:00:00]} 2. Nf3 {[%emt 0:00:00]} e6 {[%emt 0:00:00]} 3. d4 {[%emt 0:00:00]} cxd4 {[%emt 0:00:00]} 4. Nxd4 {[%emt 0:00:00]} Nc6 {[%emt 0:00:00]} 5. Nc3 {[%emt 0:00:00]} Qc7 {[%emt 0:00:00]} 6. Be3 {[%emt 0:00:10]} Nf6 {[%emt 0:00:00]} 7. f3 {[%emt 0:01:50]} a6 {[%emt 0:05:02]} 8. Qd2 {[%emt 0:00:12]} Be7 {[%emt 0:01:33]} 9. O-O-O {[%emt 0:01:30]} b5 {[%emt 0:00:52]} 10. g4 {[%emt 0:01:21]} Nxd4 {[%emt 0:02:02]} 11. Bxd4 {[%emt 0:00:47]} Bb7 {[%emt 0:02:21]} 12. Kb1 {[%emt 0:07:43]} Rc8 {[%emt 0:39:53]} 13. Rg1 {[%emt 0:05:43]} O-O {[%emt 0:02:25]} 14. e5 {[%emt 0:00:46]} Nd5 {[%emt 0:03:14]} 15. Ne4 {[%emt 0:00:08]} f6 {[%emt 0:01:19]} 16. exf6 {[%emt 0:09:02]} Nxf6 {[%emt 0:00:11]} 17. Nxf6+ {[%emt 0:06:33]} Bxf6 {[%emt 0:00:02]} 18. Bxf6 {[%emt 0:00:05]} Rxf6 {[%emt 0:00:03]} 19. Bd3 {[%emt 0:00:04]} Bxf3 {[%emt 0:01:36]} 20. Rdf1 {[%emt 0:00:14]} Rcf8 {[%emt 0:00:59]} 21. g5 {[%emt 0:00:46]} Rf4 {[%emt 0:00:07]} 22. Rg3 {[%emt 0:08:45]} Be4 {[%emt 0:14:42]} 23. Re1 {[%emt 0:00:52]} Rf2 {[%emt 0:01:21]} 24. Qd1 {[%emt 0:04:19]} Bf3 {[%emt 0:09:28]} 25. Qc1 {[%emt 0:00:03]} Rxh2 {[%emt 0:00:38]} 26. Reg1 {[%emt 0:00:12]} Qe5 {[%emt 0:02:35]} 27. Qf1 {[%emt 0:06:25]} Bg2 {[%emt 0:05:50]} 28. Qe1 {[%emt 0:01:23]} Qxe1+ {[%emt 0:00:06]} 29. Rxe1 {[%emt 0:00:02]} Rh1 {[%emt 0:00:37]} 30. Rxh1 {[%emt 0:00:07]} Bxh1 {[%emt 0:00:01]} 31. c4 {[%emt 0:00:06]} bxc4 {[%emt 0:02:31]} 32. Bxc4 {[%emt 0:00:08]} Be4+ {[%emt 0:00:29]} 33. Kc1 {[%emt 0:00:10]} a5 {[%emt 0:00:07]} 34. Kd2 {[%emt 0:01:08]} d5 {[%emt 0:00:41]} 35. Bb5 {[%emt 0:01:40]} Rf2+ {[%emt 0:00:43]} 36. Kc3 {[%emt 0:00:31]} Kf7 {[%emt 0:01:34]} 37. a4 {[%emt 0:00:08]} Rc2+ {[%emt 0:00:05]} 38. Kb3 {[%emt 0:00:12]} Ke7 {[%emt 0:01:38]} 39. Bf1 {[%emt 0:05:11]} Kd6 {[%emt 0:00:47]} 40. Ka3 {[%emt 0:00:26]} Rc1 {[%emt 0:00:19]} 41. Bh3 {[%emt 0:00:17]} d4 {[%emt 0:01:21]} 0-1

[Event "13th Arad Open 2020"]
[Site "Arad"]
[Date "2020.09.28"]
[Round "5.5"]
[White "Patrascu, Catalin-Lucian"]
[Black "Isfan, Ioan-Marius"]
[Result "0-1"]
[ECO "B01"]
[WhiteElo "2320"]
[BlackElo "2187"]
[Annotator "ChessBase"]
[PlyCount "84"]
[EventDate "2020.09.25"]
[EventType "swiss"]
[EventCountry "ROU"]
[SourceTitle "playchess.com"]
[Source "ChessBase"]
[SourceQuality "1"]
[TimeControl "5400+30"]

1. e4 {[%emt 0:00:00]} d5 {[%emt 0:01:27]} 2. exd5 {[%emt 0:00:00]} Qxd5 {[%emt 0:00:02]} 3. Nc3 {[%emt 0:00:14]} Qd6 {[%emt 0:00:03]} 4. d4 {[%emt 0:00:41]} c6 {[%emt 0:00:04]} 5. Nf3 {[%emt 0:04:14]} Bg4 {[%emt 0:00:18]} 6. Be2 {[%emt 0:05:14]} Nf6 {[%emt 0:01:14]} 7. h3 {[%emt 0:01:35]} Bh5 {[%emt 0:00:11]} 8. g4 {[%emt 0:04:36]} Bg6 {[%emt 0:00:09]} 9. Ne5 {[%emt 0:00:33]} Nbd7 {[%emt 0:01:51]} 10. Nc4 {[%emt 0:10:15]} Qc7 {[%emt 0:00:52]} 11. Bf3 {[%emt 0:07:02]} e6 {[%emt 0:00:48]} 12. Bg5 {[%emt 0:05:42]} Nb6 {[%emt 0:33:31]} 13. Ne5 {[%emt 0:08:03]} Bd6 {[%emt 0:02:04]} 14. Qe2 {[%emt 0:01:53]} Nbd5 {[%emt 0:13:11]} 15. h4 {[%emt 0:08:27]} Nxc3 16. bxc3 {[%emt 0:00:11]} Qa5 {[%emt 0:10:53]} 17. Bd2 {[%emt 0:16:29]} Bxe5 {[%emt 0:01:40]} 18. c4 {[%emt 0:04:21]} Qa3 {[%emt 0:03:38]} 19. dxe5 {[%emt 0:00:14]} Nd7 {[%emt 0:00:09]} 20. Bg2 {[%emt 0:16:08]} Qb2 {[%emt 0:02:22]} 21. Rc1 {[%emt 0:01:59]} h5 {[%emt 0:05:55]} 22. Rh3 {[%emt 0:00:55]} O-O-O {[%emt 0:06:29]} 23. Rb3 {[%emt 0:02:12]} Qxe5 {[%emt 0:01:34]} 24. Be3 {[%emt 0:00:08]} Nc5 {[%emt 0:03:23]} 25. Ra3 {[%emt 0:00:20]} a6 {[%emt 0:03:12]} 26. Kf1 {[%emt 0:00:44]} hxg4 {[%emt 0:01:12]} 27. Ra5 {[%emt 0:00:35]} b6 {[%emt 0:00:07]} 28. Rxc5 {[%emt 0:00:33]} bxc5 {[%emt 0:00:18]} 29. Qe1 {[%emt 0:00:39]} Be4 {[%emt 0:04:36]} 30. Qa5 {[%emt 0:00:07]} Bxg2+ {[%emt 0:00:04]} 31. Kxg2 {[%emt 0:00:04]} Rxh4 {[%emt 0:00:09]} 32. Qxa6+ {[%emt 0:00:23]} Kd7 {[%emt 0:00:06]} 33. Rd1+ {[%emt 0:01:24]} Ke7 {[%emt 0:00:09]} 34. Qa7+ {[%emt 0:00:31]} Kf6 {[%emt 0:01:10]} 35. Rxd8 {[%emt 0:00:15]} Qe4+ {[%emt 0:00:02]} 36. Kf1 {[%emt 0:00:08]} Rh1+ {[%emt 0:00:03]} 37. Ke2 {[%emt 0:00:03]} Qf3+ {[%emt 0:00:05]} 38. Kd2 {[%emt 0:00:04]} Rd1+ {[%emt 0:00:13]} 39. Kc3 {[%emt 0:00:03]} Rxd8 {[%emt 0:00:05]} 40. Qxc5 {[%emt 0:00:27]} Qf5 {[%emt 0:01:31]} 41. Qxc6 {[%emt 0:01:16]} g3 {[%emt 0:00:37]} 42. f4 {[%emt 0:01:15]} Qa5+ 0-1

[Event "13th Arad Open 2020"]
[Site "Arad"]
[Date "2020.09.28"]
[Round "5.6"]
[White "Craciun, Alexandru-Emilian"]
[Black "Ghimpu, Samuel-Timotei"]
[Result "1/2-1/2"]
[ECO "B20"]
[WhiteElo "2090"]
[BlackElo "2302"]
[Annotator "ChessBase"]
[PlyCount "173"]
[EventDate "2020.09.25"]
[EventType "swiss"]
[EventCountry "ROU"]
[SourceTitle "playchess.com"]
[Source "ChessBase"]
[SourceQuality "1"]
[TimeControl "5400+30"]

1. e4 {[%emt 0:00:00]} c5 {[%emt 0:03:46]} 2. c4 {[%emt 0:00:15]} b6 {[%emt 0:02:56]} 3. Nc3 {[%emt 0:00:30]} Bb7 {[%emt 0:00:29]} 4. g3 {[%emt 0:02:15]} h5 {[%emt 0:04:34]} 5. h3 {[%emt 0:02:25]} h4 {[%emt 0:00:21]} 6. g4 {[%emt 0:00:24]} Nc6 {[%emt 0:08:44]} 7. Bg2 {[%emt 0:00:56]} e6 {[%emt 0:11:05]} 8. d3 {[%emt 0:01:16]} Qc7 {[%emt 0:20:27]} 9. Be3 {[%emt 0:01:39]} Nge7 {[%emt 0:01:18]} 10. Nge2 {[%emt 0:00:57]} Ng6 {[%emt 0:03:13]} 11. Qd2 {[%emt 0:01:16]} O-O-O {[%emt 0:09:19]} 12. O-O-O {[%emt 0:08:57]} a6 {[%emt 0:07:16]} 13. f4 {[%emt 0:00:36]} Nd4 {[%emt 0:01:42]} 14. Rhf1 {[%emt 0:06:40]} Bd6 {[%emt 0:10:54]} 15. Rf2 {[%emt 0:06:25]} f6 {[%emt 0:00:23]} 16. f5 {[%emt 0:05:29]} Nxe2+ 17. Nxe2 {[%emt 0:00:03]} Ne5 {[%emt 0:01:44]} 18. g5 {[%emt 0:01:04]} b5 19. cxb5 {[%emt 0:08:06]} c4 {[%emt 0:01:35]} 20. b6 {[%emt 0:01:47]} Qc6 {[%emt 0:00:34]} 21. Kb1 {[%emt 0:01:43]} Nxd3 {[%emt 0:02:45]} 22. e5 {[%emt 0:01:36]} Qb5 {[%emt 0:00:41]} 23. exd6 {[%emt 0:09:55]} Nxf2 {[%emt 0:00:03]} 24. Nd4 {[%emt 0:08:01]} Ne4 {[%emt 0:00:04]} 25. Qc2 {[%emt 0:01:10]} Qe5 {[%emt 0:00:04]} 26. Qxc4+ {[%emt 0:10:05]} Kb8 {[%emt 0:00:00]} 27. Nc6+ dxc6 28. Qxe4 {[%emt 0:00:51]} exf5 {[%emt 0:00:08]} 29. Qf3 {[%emt 0:02:36]} Qe4+ {[%emt 0:08:14]} 30. Qxe4 {[%emt 0:00:02]} fxe4 {[%emt 0:00:04]} 31. d7 {[%emt 0:02:48]} c5 {[%emt 0:01:46]} 32. Bxc5 {[%emt 0:01:45]} Bc6 {[%emt 0:01:12]} 33. gxf6 {[%emt 0:04:46]} gxf6 {[%emt 0:00:01]} 34. Be7 {[%emt 0:00:48]} f5 {[%emt 0:00:24]} 35. Bxd8 {[%emt 0:02:20]} Rxd8 36. Rd6 {[%emt 0:00:36]} Kb7 {[%emt 0:01:32]} 37. Rf6 {[%emt 0:02:57]} Rxd7 {[%emt 0:00:28]} 38. Rxf5 {[%emt 0:00:14]} Rd2 {[%emt 0:00:03]} 39. Bf1 {[%emt 0:01:13]} e3 {[%emt 0:01:07]} 40. Kc1 {[%emt 0:00:19]} Be4 {[%emt 0:00:30]} 41. Rf4 {[%emt 0:00:29]} Bg6 {[%emt 0:00:30]} 42. Rxh4 {[%emt 0:01:51]} Rf2 {[%emt 0:00:30]} 43. Bc4 {[%emt 0:00:28]} Kxb6 {[%emt 0:00:24]} 44. Rg4 {[%emt 0:03:40]} Bf5 {[%emt 0:00:26]} 45. Rg5 {[%emt 0:00:38]} Kc5 {[%emt 0:00:38]} 46. Bd3 {[%emt 0:00:01]} Kd4 {[%emt 0:00:12]} 47. Bxf5 {[%emt 0:00:27]} Rf1+ {[%emt 0:00:16]} 48. Kc2 {[%emt 0:00:02]} e2 {[%emt 0:00:08]} 49. Rg4+ {[%emt 0:00:41]} Kc5 {[%emt 0:00:08]} 50. b4+ {[%emt 0:01:03]} Kb6 {[%emt 0:01:10]} 51. Rg6+ {[%emt 0:00:43]} Kc7 {[%emt 0:00:15]} 52. Re6 {[%emt 0:00:37]} e1=Q {[%emt 0:00:04]} 53. Rxe1 {[%emt 0:00:03]} Rxe1 {[%emt 0:00:04]} 54. Kc3 {[%emt 0:00:47]} Re3+ {[%emt 0:00:16]} 55. Kd4 {[%emt 0:00:39]} Ra3 {[%emt 0:00:06]} 56. Be6 {[%emt 0:00:08]} Rg3 {[%emt 0:00:53]} 57. a4 {[%emt 0:00:46]} Rg6 {[%emt 0:00:32]} 58. Bf5 {[%emt 0:00:33]} Rh6 {[%emt 0:00:59]} 59. Bg4 {[%emt 0:00:31]} Kb6 {[%emt 0:00:18]} 60. Kc4 {[%emt 0:00:35]} Rf6 {[%emt 0:00:40]} 61. Be2 {[%emt 0:00:28]} Rf2 {[%emt 0:00:50]} 62. Bg4 {[%emt 0:00:28]} Rf1 {[%emt 0:01:17]} 63. Be2 {[%emt 0:00:27]} Re1 {[%emt 0:00:33]} 64. a5+ {[%emt 0:00:36]} Kc7 {[%emt 0:00:49]} 65. Bg4 {[%emt 0:00:24]} Kd6 {[%emt 0:00:11]} 66. Bf3 {[%emt 0:00:24]} Rc1+ {[%emt 0:00:36]} 67. Kd4 {[%emt 0:00:12]} Rb1 {[%emt 0:00:25]} 68. Kc4 {[%emt 0:00:23]} Kc7 {[%emt 0:00:49]} 69. Bd5 {[%emt 0:00:39]} Rg1 {[%emt 0:00:31]} 70. Kc5 {[%emt 0:00:27]} Rg5 {[%emt 0:00:17]} 71. Kd4 {[%emt 0:00:46]} Rh5 {[%emt 0:00:40]} 72. Be6 {[%emt 0:00:26]} Kc6 {[%emt 0:00:30]} 73. Bg4 {[%emt 0:00:29]} Rh8 {[%emt 0:00:33]} 74. Kc4 {[%emt 0:00:42]} Rf8 {[%emt 0:00:27]} 75. Kc3 {[%emt 0:00:21]} Re8 {[%emt 0:00:26]} 76. Bf5 {[%emt 0:00:24]} Re3+ {[%emt 0:00:36]} 77. Kd4 {[%emt 0:00:20]} Re8 {[%emt 0:00:25]} 78. Bd3 {[%emt 0:00:28]} Rd8+ {[%emt 0:00:26]} 79. Kc4 {[%emt 0:01:01]} Rd7 {[%emt 0:00:41]} 80. h4 {[%emt 0:00:33]} Rg7 {[%emt 0:00:27]} 81. Be4+ {[%emt 0:00:20]} Kd6 {[%emt 0:00:11]} 82. Kd4 {[%emt 0:00:43]} Rg4 {[%emt 0:00:11]} 83. b5 {[%emt 0:00:11]} axb5 {[%emt 0:00:29]} 84. a6 {[%emt 0:00:06]} Rxh4 {[%emt 0:01:06]} 85. a7 {[%emt 0:00:04]} Rh8 {[%emt 0:00:04]} 86. a8=Q {[%emt 0:00:04]} Rxa8 {[%emt 0:00:08]} 87. Bxa8 {[%emt 0:00:02]} 1/2-1/2

[Event "13th Arad Open 2020"]
[Site "Arad"]
[Date "2020.09.28"]
[Round "5.7"]
[White "Saioc, David"]
[Black "Antonica, Dragos-Andrei"]
[Result "0-1"]
[ECO "D02"]
[WhiteElo "1898"]
[BlackElo "2301"]
[Annotator "ChessBase"]
[PlyCount "84"]
[EventDate "2020.09.25"]
[EventType "swiss"]
[EventCountry "ROU"]
[SourceTitle "playchess.com"]
[Source "ChessBase"]
[SourceQuality "1"]
[TimeControl "5400+30"]

1. d4 {[%emt 0:03:39]} d5 {[%emt 0:00:00]} 2. Nf3 {[%emt 0:00:09]} Nf6 {[%emt 0:00:00]} 3. g3 {[%emt 0:00:08]} c5 {[%emt 0:00:56]} 4. e3 {[%emt 0:01:21]} Nc6 {[%emt 0:00:29]} 5. Bg2 {[%emt 0:00:12]} Bf5 {[%emt 0:02:21]} 6. a3 {[%emt 0:04:25]} e6 {[%emt 0:08:46]} 7. O-O {[%emt 0:00:39]} Rc8 {[%emt 0:01:29]} 8. Nc3 {[%emt 0:00:21]} cxd4 {[%emt 0:02:20]} 9. exd4 {[%emt 0:00:37]} Bd6 {[%emt 0:00:09]} 10. Re1 {[%emt 0:00:33]} O-O {[%emt 0:00:53]} 11. Nh4 {[%emt 0:00:12]} Bg4 {[%emt 0:01:03]} 12. Bf3 {[%emt 0:02:09]} Bxf3 {[%emt 0:00:29]} 13. Nxf3 {[%emt 0:00:08]} a6 {[%emt 0:05:54]} 14. Ne2 {[%emt 0:04:37]} Qb6 {[%emt 0:01:24]} 15. c3 {[%emt 0:07:27]} Na5 {[%emt 0:02:11]} 16. Qc2 {[%emt 0:06:28]} Nb3 {[%emt 0:04:41]} 17. Rb1 {[%emt 0:00:16]} Ne4 {[%emt 0:00:13]} 18. Nd2 {[%emt 0:09:33]} Nexd2 {[%emt 0:08:18]} 19. Bxd2 {[%emt 0:00:07]} Nxd4 {[%emt 0:01:59]} 20. Nxd4 {[%emt 0:00:07]} Qxd4 {[%emt 0:00:02]} 21. Qxh7+ {[%emt 0:00:10]} Kxh7 {[%emt 0:00:01]} 22. cxd4 {[%emt 0:00:08]} Rc2 {[%emt 0:01:51]} 23. Be3 {[%emt 0:02:07]} Rfc8 {[%emt 0:00:46]} 24. Kf1 {[%emt 0:04:05]} Kg6 {[%emt 0:00:25]} 25. Re2 {[%emt 0:02:49]} Kf5 {[%emt 0:00:58]} 26. h3 {[%emt 0:05:33]} b5 {[%emt 0:18:29]} 27. Ke1 {[%emt 0:02:40]} Ke4 {[%emt 0:12:33]} 28. Bd2+ {[%emt 0:00:51]} Kxd4 {[%emt 0:02:22]} 29. Bc3+ {[%emt 0:00:31]} R8xc3 {[%emt 0:00:13]} 30. bxc3+ {[%emt 0:00:41]} Rxc3 {[%emt 0:00:11]} 31. a4 {[%emt 0:03:12]} b4 {[%emt 0:00:25]} 32. Ra2 {[%emt 0:00:56]} b3 {[%emt 0:02:53]} 33. Rab2 {[%emt 0:01:44]} Kc4 {[%emt 0:00:39]} 34. Rd1 {[%emt 0:01:26]} Rc2 {[%emt 0:01:19]} 35. Rbb1 {[%emt 0:00:18]} Bb4+ {[%emt 0:00:54]} 36. Kf1 {[%emt 0:00:12]} d4 {[%emt 0:01:18]} 37. h4 {[%emt 0:00:30]} d3 {[%emt 0:04:08]} 38. h5 {[%emt 0:00:07]} b2 {[%emt 0:00:26]} 39. g4 {[%emt 0:00:11]} Bd2 {[%emt 0:01:17]} 40. Rxd2 {[%emt 0:00:48]} Rxd2 {[%emt 0:00:07]} 41. g5 {[%emt 0:00:05]} Rc2 {[%emt 0:00:19]} 42. Kg2 {[%emt 0:00:16]} Kb3 {[%emt 0:00:43]} 0-1

[Event "13th Arad Open 2020"]
[Site "Arad"]
[Date "2020.09.28"]
[Round "5.8"]
[White "Daianu, Cristian-Clement"]
[Black "Paraschiv, Petronela-Alexandra"]
[Result "1-0"]
[ECO "B06"]
[WhiteElo "2224"]
[BlackElo "1909"]
[Annotator "ChessBase"]
[PlyCount "82"]
[EventDate "2020.09.25"]
[EventType "swiss"]
[EventCountry "ROU"]
[SourceTitle "playchess.com"]
[Source "ChessBase"]
[SourceQuality "1"]
[TimeControl "5400+30"]

1. e4 {[%emt 0:00:52]} d6 {[%emt 0:00:00]} 2. d4 {[%emt 0:00:28]} g6 {[%emt 0:00:00]} 3. Nc3 {[%emt 0:02:24]} Bg7 {[%emt 0:00:03]} 4. f4 {[%emt 0:00:28]} a6 {[%emt 0:00:36]} 5. Nf3 {[%emt 0:00:23]} b5 {[%emt 0:00:47]} 6. Bd3 {[%emt 0:04:16]} Bb7 {[%emt 0:01:35]} 7. Qe2 {[%emt 0:00:42]} Nd7 {[%emt 0:01:27]} 8. e5 {[%emt 0:01:15]} e6 {[%emt 0:02:40]} 9. d5 {[%emt 0:12:22]} b4 {[%emt 0:11:33]} 10. dxe6 {[%emt 0:02:11]} fxe6 {[%emt 0:02:14]} 11. Ne4 {[%emt 0:02:53]} Bxe4 {[%emt 0:02:25]} 12. Qxe4 {[%emt 0:05:29]} d5 {[%emt 0:00:13]} 13. Qxb4 {[%emt 0:00:13]} Nb6 {[%emt 0:07:08]} 14. Bxa6 {[%emt 0:08:45]} Qd7 {[%emt 0:01:46]} 15. Bb5 {[%emt 0:01:51]} c6 {[%emt 0:00:07]} 16. Bd3 {[%emt 0:00:04]} Rb8 {[%emt 0:04:10]} 17. Be3 {[%emt 0:04:23]} Bf8 {[%emt 0:00:18]} 18. Bc5 {[%emt 0:05:07]} Bxc5 {[%emt 0:00:22]} 19. Qxc5 {[%emt 0:00:02]} Na4 {[%emt 0:00:50]} 20. Qa3 {[%emt 0:01:13]} Nxb2 {[%emt 0:02:45]} 21. O-O {[%emt 0:01:22]} Qe7 {[%emt 0:03:24]} 22. Qc3 {[%emt 0:02:16]} Qa7+ {[%emt 0:00:56]} 23. Kh1 {[%emt 0:00:18]} Kd7 {[%emt 0:01:49]} 24. f5 {[%emt 0:04:18]} gxf5 {[%emt 0:02:08]} 25. Bxf5 {[%emt 0:00:20]} Ne7 {[%emt 0:00:29]} 26. Bxe6+ {[%emt 0:06:50]} Kxe6 {[%emt 0:02:07]} 27. Nd4+ {[%emt 0:20:01]} Kd7 {[%emt 0:04:23]} 28. Rf7 {[%emt 0:00:06]} Qb6 {[%emt 0:07:18]} 29. Qh3+ {[%emt 0:09:15]} Kd8 {[%emt 0:00:52]} 30. Ne6+ {[%emt 0:00:03]} Ke8 {[%emt 0:00:22]} 31. Raf1 {[%emt 0:00:04]} Qa5 {[%emt 0:04:02]} 32. Rf8+ {[%emt 0:04:09]} Rxf8 {[%emt 0:01:06]} 33. Rxf8+ {[%emt 0:00:02]} Kd7 {[%emt 0:00:05]} 34. Nc5+ {[%emt 0:00:13]} Kc7 {[%emt 0:00:08]} 35. Qd7+ {[%emt 0:00:05]} Kb6 {[%emt 0:00:09]} 36. Rxb8+ {[%emt 0:00:08]} Kxc5 {[%emt 0:00:13]} 37. Qxe7+ {[%emt 0:00:03]} Kc4 {[%emt 0:00:39]} 38. Qh4+ {[%emt 0:00:06]} d4 {[%emt 0:01:49]} 39. Rxb2 {[%emt 0:00:11]} Qc3 {[%emt 0:00:11]} 40. Rb1 {[%emt 0:00:17]} Qxc2 {[%emt 0:00:06]} 41. Qe1 {[%emt 0:00:05]} Kd5 1-0